Cogmind - Beta 16 @@@ ROGUE MODE // 2025.11.16 @ 20:22:10 Player: LightKnight Result: Self-destructed Performance ------------- Evolutions (5) 2500 Regions Visited (10) 2000 Robots Destroyed (362) 1810 Value Destroyed (14358) 14358 Prototype IDs (48) 960 Alien Tech Used (0) 0 Bonus (6831) 6831 TOTAL SCORE: 28459 Bonus ------- High Alert Combat Kills 5369 Follower Combat Kills 784 Aligned with FarCom 300 Met R17 at Cetus 500 Friendly Fire -122 Cogmind --------- Core Integrity 266/1000 Matter 147/300 Energy 100/100 System Corruption 12% Temperature Cool (0) Movement Core (50) Location -5/Factory Parts ------- > --- POWER (2) -------- (None) > --- PROPULSION (4) --- (None) > --- UTILITY (6) ------ (None) > --- WEAPON (5) ------- (None) > --- INVENTORY (5) ---- Centrium Heavy Treads Huge Storage Unit Improved Plasma Cutter Peak State ------------ > --- POWER ------------ Light Neutrino Core Quantum Reactor > --- PROPULSION ------- Centrium Heavy Treads Centrium Heavy Treads > --- UTILITY ---------- Improved Cryofiber Web Advanced Heat Sink High-capacity Storage Unit Centrium Medium Armor Plating Centrium Medium Armor Plating Centrium Medium Armor Plating > --- WEAPON ----------- KE Penetrator Hypervelocity Coil Gun Advanced KE Penetrator Advanced KE Penetrator Advanced KE Penetrator > --- INVENTORY -------- Reinforced Deuterium Engine Reinforced Deuterium Engine Centrium Heavy Treads Centrium Heavy Treads Centrium Heavy Treads Huge Storage Unit High-capacity Matter Pod Experimental Sensor Array Centrium Medium Armor Plating Advanced Variable Charge Gun Advanced Variable Charge Gun Advanced Variable Charge Gun Advanced Variable Charge Gun Heavy Phase Cannon Coil Gun Improved Plasma Cutter [Rating: 139] Favorites ----------- Power Improved Deuterium Engine Engine Improved Deuterium Engine Power Core Micro Nuclear Core Reactor Quantum Reactor Propulsion Light Treads Treads Light Treads Leg Carbon-fiber Leg Wheel Compact Wheel Utility High-capacity Storage Unit Device Improved Cooling System Storage High-capacity Storage Unit Processor Advanced Targeting Computer Protection Centrium Medium Armor Plating Weapon Improved Light Cannon Energy Gun Heavy Particle Gun Energy Cannon Heavy Ion Cannon Ballistic Gun Advanced KE Penetrator Ballistic Cannon Improved Light Cannon Launcher Heavy Rocket Launcher Special Weapon Improved Plasma Cutter Impact Weapon Mace Slashing Weapon Axe Build | -11 -10 -10 -10 -9 -8 -7 -6 -6 -6 -5 ------- Run | Yrd Mat Min Exi Min Mat Fac Fac Ext Cet Fac Slots Evolved 10 | . . . . . 4 2 2 . . 2 Power 1 | . . . . . . 1 . . . . Propulsion 2 | . . . . . 1 1 . . . . Utility 4 | . . . . . 2 . 2 . . . Weapon 3 | . . . . . 1 . . . . 2 Parts Attached 194 | . 11 3 1 5 25 50 27 36 20 16 Power 24 | . 1 . . 1 1 10 4 4 1 2 Engine 19 | . 1 . . 1 1 9 3 3 . 1 Core 4 | . . . . . . 1 1 1 . 1 Reactor 1 | . . . . . . . . . 1 . Propulsion 55 | . 3 1 . 1 9 17 7 12 5 . Treads 38 | . 2 1 . 1 9 14 . 6 5 . Leg 15 | . 1 . . . . 1 7 6 . . Wheel 2 | . . . . . . 2 . . . . Hover . | . . . . . . . . . . . Flight . | . . . . . . . . . . . Utility 60 | . 2 1 1 2 8 9 9 14 5 9 Device 34 | . 1 1 1 1 3 5 7 10 1 4 Storage 4 | . 1 . . . 1 . . . . 2 Processor 4 | . . . . . 1 1 1 . . 1 Hackware . | . . . . . . . . . . . Protection 18 | . . . . 1 3 3 1 4 4 2 Artifact . | . . . . . . . . . . . Weapon 55 | . 5 1 . 1 7 14 7 6 9 5 Energy Gun 26 | . 2 . . . 5 4 5 5 4 1 Energy Cannon 5 | . . . . . . 3 2 . . . Ballistic Gun 9 | . . . . . . 1 . . 5 3 Ballistic Cannon 6 | . 2 . . 1 1 1 . 1 . . Launcher 5 | . 1 1 . . 1 2 . . . . Special Weapon 1 | . . . . . . . . . . 1 Impact Weapon 1 | . . . . . . 1 . . . . Slashing Weapon 2 | . . . . . . 2 . . . . Piercing Weapon . | . . . . . . . . . . . Special Melee Weapon . | . . . . . . . . . . . Unidentified Prototypes 16 | . . 1 1 . 1 5 1 1 4 2 Corrupted Parts 9 | . . . . . . . . . 9 . System Corruption 36 | . . . . . . . . . 36 . Parts Lost 89 | . . 1 . 1 8 33 23 14 1 8 Power 16 | . . . . . 1 9 3 2 . 1 Propulsion 31 | . . 1 . 1 4 15 7 2 . 1 Utility 18 | . . . . . 1 3 6 6 . 2 Weapon 24 | . . . . . 2 6 7 4 1 4 Highest Loss Streak 11 | . . 1 . 1 2 5 11 5 1 3 To Critical Strikes 2 | . . . . . . . . . 1 1 Average Backups 15 | . 8 10 13 13 16 17 17 18 17 15 Power . | . . 1 3 1 . . . . 1 1 Propulsion 2 | . 2 2 1 1 4 1 2 4 2 2 Utility 6 | . . 1 3 6 8 10 8 7 6 4 Weapon 4 | . 3 5 4 4 3 5 5 5 6 6 Tool/Special . | . . . . . . . . . . . Unused Backups 33 | . 4 . 2 2 4 7 2 2 7 3 Power 6 | . . . 1 2 2 1 . . . . Propulsion 5 | . . . . . 1 1 . 2 1 . Utility 12 | . 2 . . . 1 4 2 . 3 . Weapon 10 | . 2 . 1 . . 1 . . 3 3 Tool/Special . | . . . . . . . . . . . Average Slot Usage (%) 94 | . 97 99 98 100 98 92 91 93 94 85 Engine 10 | . 14 14 14 14 9 12 4 8 9 3 Core 1 | . . . . . . . 7 3 . 1 Treads 21 | . 16 27 28 28 26 27 8 7 23 10 Leg 4 | . 11 . . . . . 15 18 . . Device 11 | . 12 14 13 . 9 9 20 17 13 12 Storage 8 | . 14 14 13 14 9 7 6 6 6 4 Processor 3 | . . . . . 8 3 3 6 6 2 Protection 6 | . . . . 13 8 6 2 4 10 11 Energy Gun 10 | . 1 . . . 26 12 9 16 11 1 Energy Cannon 1 | . . . . . . 5 6 . 3 . Ballistic Gun 3 | . 1 . . . . . . . 2 26 Ballistic Cannon 6 | . 24 27 28 27 . . . 1 . . Peak Build Rating 139 | . 10 19 22 20 41 51 67 72 117 139 Average Rating 48 | . 9 10 13 17 37 43 56 62 76 132 On Entrance 33 | 6 6 10 12 14 18 38 36 54 54 117 Avg Prop Armor Cover (%) 6 | . . . . . . 5 . 6 . . Naked Turns 52 | . . . . . . . . . . 52 Heaviest Build 127 | 12 34 34 34 44 66 90 88 103 123 127 Greatest Support 160 | 3 40 40 40 40 66 96 96 100 160 160 Greatest Overweight (x) 23 | 3 . . . 1 1 5 23 2 1 . Average Overweight (x) . | 3 . . . . . . . . . . Largest Inventory Capacity 25 | . 15 15 15 15 20 20 20 20 20 25 Average Capacity 18 | . 10 15 14 15 18 20 20 20 20 19 Most Carried 20 | . 10 12 15 15 20 20 20 20 20 20 Average Carried 16 | . 8 10 14 14 17 18 17 18 19 18 Final Capacity 20 | 8 15 15 15 15 20 20 20 20 20 5 Final Carried 20 | 6 10 12 15 15 20 16 13 20 18 4 Class Distribution -------------------- 45% | Scavenger-Skirmisher 26% | Mutant 15% | Scavenger-Tank 3% | Scavenger-Mutant Dominant Class ---------------- Mutant | -10/Materials Mutant | -10/Mines Mutant | -10/Exiles Mutant | -9/Mines Scavenger-Skirmisher | -8/Materials Scavenger-Skirmisher | -7/Factory Scavenger-Skirmisher | -6/Factory Scavenger-Skirmisher | -6/Extension Scavenger-Tank | -6/Cetus Scavenger-Tank | -5/Factory Resources | -11 -10 -10 -10 -9 -8 -7 -6 -6 -6 -5 ----------- Run | Yrd Mat Min Exi Min Mat Fac Fac Ext Cet Fac Matter Collected 6743 | 200 737 239 20 437 499 1230 563 543 138 2137 Remotely . | . . . . . . . . . . . Salvage Created 15607 | . 549 48 . 336 3188 5084 1818 1173 462 2949 Parts 742 | . 63 7 . 30 136 224 57 47 19 159 Haulers Intercepted 16 | . 2 . . . 4 5 2 . . 3 Recyclers Shooed 13 | . 1 . . . 2 4 3 3 . . Parts Field Recycled . | . . . . . . . . . . . Retrieved Matter . | . . . . . . . . . . . Parts Self-Destructed . | . . . . . . . . . . . Prevented . | . . . . . . . . . . . Parts Restored . | . . . . . . . . . . . Kills | -11 -10 -10 -10 -9 -8 -7 -6 -6 -6 -5 ------- Run | Yrd Mat Min Exi Min Mat Fac Fac Ext Cet Fac Combat Hostiles Destroyed 280 | . 22 3 . 16 51 92 27 17 6 46 Melee 13 | . . . . . . 8 5 . . . Guns 127 | . . . . . 36 23 8 12 3 45 Cannons 61 | . 20 . . 10 . 19 7 3 2 . AOE 52 | . 2 3 . 6 6 29 6 . . . Classes Destroyed 19 | . 8 . . 1 5 4 . 1 . . Worker 19 | . 2 1 . 2 4 7 1 . . 2 Builder 12 | . 1 . . . . 6 . 2 . 3 Tunneler 4 | . 1 1 . . . 1 . . . 1 Hauler 16 | . 2 . . . 4 5 2 . . 3 Recycler 8 | . . . . . 2 4 2 . . . Mechanic 3 | . . . . . . 1 2 . . . Operator 4 | . 1 . . . . 1 . . . 2 Watcher 15 | . 3 . . . 3 6 1 . . 2 Swarmer 51 | . 9 3 . 8 2 13 . . . 16 Grunt 135 | . 13 . . 7 35 47 14 8 . 11 Brawler 6 | . . . . . . 4 . . . 2 Duelist 14 | . . . . 1 1 7 3 1 . 1 Protector 3 | . . . . . . 2 1 . . . Sentry 29 | . . . . . 9 10 . 4 . 6 Specialist 2 | . . . . . 2 . . . . . Hunter 12 | . . . . . 1 . 5 3 . 3 Programmer 20 | . . . . . . 9 4 . . 7 Heavy 1 | . . . . . 1 . . . . . Behemoth 1 | . . . . . . . . 1 . . Cetus Guard 6 | . . . . . . . . . 6 . Thug 1 | . . . . 1 . . . . . . Best Kill Streak 17 | . 6 3 . 5 10 17 7 3 3 11 Combat Bots Only 10 | . 5 3 . 4 8 10 5 3 3 9 Max Kills in Single Turn 6 | . 1 3 . 2 3 3 6 1 1 3 Gunslinging 2 | . . . . . . . . . . 2 Exploded 4 | . 1 3 . 2 3 3 4 . . . Melee 1 | . . . . . . 1 1 . . . Uniques/NPCs Destroyed . | . . . . . . . . . . . Combat | -11 -10 -10 -10 -9 -8 -7 -6 -6 -6 -5 -------- Run | Yrd Mat Min Exi Min Mat Fac Fac Ext Cet Fac Hostile Shots Fired 1701 | . 83 13 . 59 168 472 196 316 25 369 Missed 521 | . 35 4 . 21 46 150 56 119 10 80 Hits 1180 | . 48 9 . 38 122 322 140 197 15 289 Melee 32 | . . . . . 3 19 2 . . 8 Projectile 1148 | . 48 9 . 38 119 303 138 197 15 281 AOE 5 | . . 5 . . . . . . . . Critical Strikes 46 | . . . . 1 7 13 9 5 6 5 Part Disruptions 2 | . . . . . . 2 . . . . Damage Taken 18601 | . 484 257 . 417 2097 5101 2456 2292 237 5260 Core 2324 | . 63 18 . 99 173 594 360 249 34 734 Absorbed by Shields 663 | . . . . . . 5 203 333 122 . Reduced by Siege Mode 164 | . . . . . . . . . . 164 Ignored by Resistances 56 | . . . . . . . . . 56 . Regen/Repaired (Parts) 247 | . 90 . . . 157 . . . . . Core Remaining (%) 47 | 100 . . . 28 68 15 . . 24 . Volleys Fired 748 | . 72 7 . 38 153 224 63 72 15 104 Largest 5 | . 2 2 . 2 3 3 3 3 3 5 Hottest 303 | . 66 66 . 66 193 229 234 229 240 303 Shots Fired 1890 | . 141 13 . 70 396 462 136 174 36 462 Gun 1336 | . 2 . . . 375 248 82 145 22 462 Cannon 457 | . 136 12 . 64 10 147 47 27 14 . Launcher 97 | . 3 1 . 6 11 67 7 2 . . Special . | . . . . . . . . . . . Kinetic 666 | . 137 12 . 64 10 . . 24 2 417 Thermal 1073 | . . . . . 375 350 121 148 34 45 Explosive 41 | . 3 1 . 6 . 26 5 . . . Electromagnetic 110 | . 1 . . . 11 86 10 2 . . Robot Hit Streak 24 | . 9 2 . 5 12 18 16 12 17 24 Robot Miss Streak 7 | . 6 6 . 6 3 7 5 4 2 5 Penetration Max 2 | . . . . . . . . . . 2 Secondary Targets 28 | . . . . . 5 1 1 4 . 17 Max Gunslinging Chain 2 | . . . . . 1 1 1 1 . 2 Shots Hit Robots 1233 | . 65 4 . 26 258 353 113 118 30 266 Core Hits 699 | . 33 5 . 24 110 264 79 50 14 120 Critical Kills 29 | . . . . . . 2 1 2 4 20 Critical Parts Destroyed 39 | . . . . . . 1 2 3 . 33 Critical Strikes 107 | . 2 . . 2 16 11 10 6 5 55 Burn 22 | . . . . . 16 1 4 1 . . Meltdown 3 | . . . . . . 2 . . 1 . Destroy 67 | . . . . . . . 3 5 4 55 Blast 4 | . 2 . . 2 . . . . . . Smash 1 | . . . . . . 1 . . . . Sever 10 | . . . . . . 7 3 . . . Melee Attacks 75 | . . . . . . 48 27 . . . Impact 4 | . . . . . . 4 . . . . Slashing 71 | . . . . . . 44 27 . . . Piercing . | . . . . . . . . . . . Sneak Attacks 4 | . . . . . . 4 . . . . Combat Hostiles . | . . . . . . . . . . . Follow-up Attacks 9 | . . . . . . 5 4 . . . Damage Inflicted 38578 | . 1634 276 . 1193 5838 13430 5245 2909 819 7234 Guns 19781 | . . . . . 4934 3702 1171 2328 421 7225 Cannons 6497 | . 1380 69 . 644 . 2473 1115 418 398 . Explosions 9885 | . 222 156 . 547 877 5816 2134 133 . . Melee 2204 | . . . . . . 1420 784 . . . Ramming 211 | . 32 51 . 2 27 19 41 30 . 9 Kinetic 8806 | . 1380 69 . 644 . . . 360 30 6323 Thermal 16899 | . . . . . 4934 5769 2119 2386 789 902 Explosive 5748 | . 222 156 . 547 . 2837 1986 . . . Electromagnetic 4710 | . . . . . 877 3385 315 133 . . Impact 119 | . . . . . . 119 . . . . Slashing 2085 | . . . . . . 1301 784 . . . Piercing . | . . . . . . . . . . . Highest Corruption 36 | . . . . . 1 2 2 2 36 12 Average Corruption 2 | . . . . . 1 1 1 1 26 5 Corruption Purged 6 | . . . . . 1 3 . 2 . . Corruption Blocked . | . . . . . . . . . . . Effects 91 | . . . . . 17 10 10 4 2 48 Message Errors 28 | . . . . . 6 3 3 . 1 15 Matter Fused 15 | . . . . . 2 2 4 1 . 6 Heat Flow Errors 11 | . . . . . 4 1 1 . . 5 Energy Discharges 11 | . . . . . . 1 . 1 . 9 Parts Rejected 2 | . . . . . . . . 1 . 1 Parts Fused 1 | . . . . . . 1 . . . . Data Loss (minor) 8 | . . . . . 4 . . . . 4 Data Loss (major) 6 | . . . . . . 2 1 . . 3 Misfires 3 | . . . . . . . 1 1 1 . Weapon Failures 6 | . . . . . 1 . . . . 5 Overload Shots 1 | . . . . . . 1 . . . . Overflow Damage 496 | . 49 . . 48 . 292 107 . . . Projectiles 96 | . 29 . . 18 . 16 33 . . . Explosions 320 | . 20 . . 30 . 196 74 . . . Melee 80 | . . . . . . 80 . . . . Knockbacks 18 | . 13 1 . 2 . 1 . 1 . . Impact 3 | . . 1 . . . 1 . 1 . . Kinetic 14 | . 12 . . 2 . . . . . . Secondary 1 | . 1 . . . . . . . . . Self-Inflicted Damage 763 | . . 40 . 37 . 533 152 . . 1 Shots 22 | . . 1 . 1 . 16 4 . . . Rammed 21 | . 4 6 . 1 4 4 . . . 2 Targets Rammed 31 | . 8 7 . 1 4 4 3 2 . 2 Kicked 9 | . 4 . . . . . 3 2 . . Crushed 1 | . . 1 . . . . . . . . Highest Temperature 435 | . 24 . . 188 435 433 390 340 99 308 Average Temperature 91 | . 9 . . 54 100 99 93 72 38 109 Received Heat Transfer 5057 | . 156 . . 147 918 1500 696 935 . 705 Effects 9 | . . . . . 2 4 2 . . 1 Shutdowns 3 | . . . . . 1 1 1 . . . Energy Bleed 4 | . . . . . . 3 1 . . . Matter Decay 1 | . . . . . 1 . . . . . Short Circuit 1 | . . . . . . . . . . 1 Siege Activations 5 | . . . . . . . . . . 5 Total Turns 82 | . . . . . . . . . . 82 Longest Duration 25 | . . . . . . . . . . 25 Martial Activations . | . . . . . . . . . . . Shielding Activations . | . . . . . . . . . . . Robots Disrupted . | . . . . . . . . . . . Combat Hostiles . | . . . . . . . . . . . Robots Corrupted 12 | . . . . . 2 10 . . . . Combat Hostiles 12 | . . . . . 2 10 . . . . Parts Fried 24 | . . . . . 5 18 1 . . . Impact Corruptions 2 | . . . . . . 2 . . . . Robots Melted 15 | . . . . . 7 3 1 2 1 1 Combat Hostiles 15 | . . . . . 7 3 1 2 1 1 Parts Melted 76 | . . . . . 26 24 9 13 4 . Heat Transferred 30745 | . . . . . 10693 10324 3621 3959 1188 960 Parts Sabotaged 4 | . . . . . . . . . . 4 Parts Stolen . | . . . . . . . . . . . Parts Stripped . | . . . . . . . . . . . Power Chain Reactions 9 | . . . . . 1 6 1 1 . . Alert | -11 -10 -10 -10 -9 -8 -7 -6 -6 -6 -5 ------- Run | Yrd Mat Min Exi Min Mat Fac Fac Ext Cet Fac Maximum Alert Level 5 | . 1 . . 1 3 5 4 3 2 3 Low Security (%) 18 | . 32 100 . 83 10 . . . . 12 Level 1 23 | . 67 . . 16 26 31 . . 4 36 Level 2 17 | . . . . . 20 14 . 13 95 42 Level 3 20 | . . . . . 43 9 . 86 . 9 Level 4 12 | . . . . . . 18 100 . . . Level 5 6 | . . . . . . 25 . . . . High Security . | . . . . . . . . . . . Max Security . | . . . . . . . . . . . Sterilizations 1 | . . . . . 1 . . . . . Peak Influence 2678 | . 384 133 . 256 990 2678 1507 950 584 966 Initial 1311 | . . 133 . . 39 425 1311 724 516 217 Average 670 | . 245 20 . 101 611 1035 1282 808 479 469 Influence Increases 10081 | . 807 114 . 450 1632 3353 924 1155 201 1445 Destroy 0b10 Robot/C 5848 | . 440 80 . 320 1020 1800 520 680 160 828 Destroy 0b10 Robot/NC 437 | . 50 10 . 10 65 165 45 25 10 57 Destroy Leader 1268 | . 100 10 . 50 274 430 116 104 . 184 Allied During Kill 272 | . . 2 . . 5 . . 249 16 . Successful Hack 157 | . 19 . . . 3 34 38 31 . 32 Select Force Hacks 120 | . 60 . . . 60 . . . . . Disable Machine 612 | . 30 . . . 60 315 60 30 15 102 Anti-Garrison Action 350 | . . . . . . 350 . . . . Destroy Structure 495 | . 33 12 . 25 10 124 70 21 . 200 Lose Combat Pursuer 522 | . 75 . . 45 135 135 75 15 . 42 Influence Decreases 9119 | . 464 452 5 350 796 1611 2123 1711 735 872 Entered New Map 3488 | . . 210 5 . 61 511 1367 755 407 172 Time Decay 4533 | . 464 220 . 350 649 770 526 616 318 620 Lost Part 851 | . . . . . 61 330 230 140 10 80 Lost Ally 247 | . . 22 . . 25 . . 200 . . Squads Dispatched 83 | . 5 . . 1 15 40 9 6 . 7 Investigation 17 | . 3 . . . 5 5 3 1 . . Extermination 13 | . . . . . . 8 2 . . 3 Reinforcement 19 | . 2 . . 1 6 4 1 3 . 2 Assault 19 | . . . . . 1 11 3 2 . 2 Garrison 15 | . . . . . 3 12 . . . . Intercept . | . . . . . . . . . . . Searches Triggered . | . . . . . . . . . . . Construction Impeded 7 | . . . . 1 . 3 . 2 . 1 Haulers Reinforced 2 | . . . . . . 1 1 . . . Active Scanning Responses . | . . . . . . . . . . . Cargo Convoy Interrupts 2 | . . . . . . . 1 . . 1 Stealth | -11 -10 -10 -10 -9 -8 -7 -6 -6 -6 -5 --------- Run | Yrd Mat Min Exi Min Mat Fac Fac Ext Cet Fac Distress Signals 13 | . . . . . 6 . 1 2 2 2 Communications Jammed . | . . . . . . . . . . . Distress Signals . | . . . . . . . . . . . Times Spotted 424 | . 34 5 . 15 72 130 46 35 11 76 Peak Tracking Total 13 | . 4 3 . 4 9 8 9 7 5 13 Tactical Retreats 24 | . 3 . . 1 6 7 3 1 . 3 Traps | -11 -10 -10 -10 -9 -8 -7 -6 -6 -6 -5 ------- Run | Yrd Mat Min Exi Min Mat Fac Fac Ext Cet Fac Traps Triggered 16 | . 3 . . . 2 4 5 1 . 1 Indirectly . | . . . . . . . . . . . Trap Hack Attempts . | . . . . . . . . . . . Triggered . | . . . . . . . . . . . Disarmed . | . . . . . . . . . . . Reprogrammed . | . . . . . . . . . . . Reused . | . . . . . . . . . . . Traps Extracted . | . . . . . . . . . . . Installed . | . . . . . . . . . . . Triggered . | . . . . . . . . . . . Machines | -11 -10 -10 -10 -9 -8 -7 -6 -6 -6 -5 ---------- Run | Yrd Mat Min Exi Min Mat Fac Fac Ext Cet Fac Machines Disabled 44 | . 2 . . . 4 22 4 3 1 8 Max in Single Turn 4 | . 1 . . . 1 4 4 1 . 2 Garrison Access 4 | . . . . . 1 2 . . . 1 Machines Repaired . | . . . . . . . . . . . Machines Dismantled . | . . . . . . . . . . . Machines Sabotaged . | . . . . . . . . . . . Overloaded Fab Kills . | . . . . . . . . . . . Hacking | -11 -10 -10 -10 -9 -8 -7 -6 -6 -6 -5 --------- Run | Yrd Mat Min Exi Min Mat Fac Fac Ext Cet Fac Machines Accessed 59 | . 8 1 2 . 11 17 3 10 . 7 Terminals 37 | . 5 . . . 6 9 2 10 . 5 Fabricators 3 | . . . . . . 2 . . . 1 Repair Stations 3 | . 1 . . . 2 . . . . . Recycling Units 6 | . 2 . . . 2 2 . . . . Scanalyzers 2 | . . . . . . 1 1 . . . Garrison Access 5 | . . . . . 1 3 . . . 1 Total Hacks 137 | . 25 1 2 . 30 41 8 17 . 13 Successful 74 | . 16 1 2 . 20 16 4 11 . 4 Failed 63 | . 9 . . . 10 25 4 6 . 9 Catastrophic 3 | . 1 . . . 1 . 1 . . . Database Lockouts . | . . . . . . . . . . . Manual 85 | . 12 . 1 . 19 34 2 9 1 7 Terminals 95 | . 17 . . . 20 26 5 17 . 10 Fabricators 3 | . . . . . . 2 . . . 1 Repair Stations 12 | . 5 . . . 7 . . . . . Recycling Units 9 | . 3 . . . 2 4 . . . . Scanalyzers 5 | . . . . . . 2 3 . . . Garrison Access 10 | . . . . . 1 7 . . . 2 Terminal Hacks 20 | . 4 1 2 . 3 1 2 6 . 1 Record 2 | . . . 1 . 1 . . . . . Part Schematic 1 | . . . . . . . . 1 . . Prototype ID Bank 5 | . 2 . . . 1 . 1 1 . . Open Door 4 | . . 1 . . . . . 3 . . Terminal Index 1 | . . . . . . . 1 . . . Locate Traps 4 | . 1 . . . . 1 . 1 . 1 Hauler Manifests 2 | . 1 . . . 1 . . . . . Proto ID Catalog 1 | . . . 1 . . . . . . . Fabricator Hacks . | . . . . . . . . . . . Repair Station Hacks 8 | . 3 . . . 5 . . . . . Scan Component 5 | . 2 . . . 3 . . . . . Repair 3 | . 1 . . . 2 . . . . . Recycling Unit Hacks . | . . . . . . . . . . . Scanalyzer 3 | . . . . . . 1 2 . . . Retrieve Study 3 | . . . . . . 1 2 . . . Garrison Access Hacks 2 | . . . . . 1 . . . . 1 Seal Access 2 | . . . . . 1 . . . . 1 Unauthorized Hacks 40 | . 9 . . . 11 14 . 4 . 2 Terminals 31 | . 7 . . . 9 10 . 4 . 1 Botnet 17 | . 3 . . . 4 5 . 4 . 1 Skim 14 | . 4 . . . 5 5 . . . . Fabricators 3 | . . . . . . 2 . . . 1 Liberate 3 | . . . . . . 2 . . . 1 Repair Stations . | . . . . . . . . . . . Recycling Units 5 | . 2 . . . 2 1 . . . . Monitor 1 | . . . . . . 1 . . . . Tunnel 4 | . 2 . . . 2 . . . . . Scanalyzers . | . . . . . . . . . . . Garrison Access 1 | . . . . . . 1 . . . . Jam 1 | . . . . . . 1 . . . . Data Cores Recovered 1 | . . . . . . . . . . 1 Used . | . . . . . . . . . . . Hacking Detections 42 | . 5 . . . 8 16 3 5 . 5 Full Trace Events 5 | . . . . . 1 3 1 . . . Feedback Events 1 | . . . . . 1 . . . . . Corruption 1 | . . . . . 1 . . . . . Feedback Blocked . | . . . . . . . . . . . Robot Schematics Acquired . | . . . . . . . . . . . Robots Built . | . . . . . . . . . . . Authchips . | . . . . . . . . . . . Time . | . . . . . . . . . . . Total Robot Build Rating . | . . . . . . . . . . . Part Schematics Acquired 1 | . . . . . . . . 1 . . Parts Built . | . . . . . . . . . . . Authchips . | . . . . . . . . . . . Time . | . . . . . . . . . . . Total Part Build Rating . | . . . . . . . . . . . Part Studies Acquired 3 | . . . . . . 1 2 . . . Parts Repaired 3 | . 1 . . . 2 . . . . . Time 136 | . 32 . . . 104 . . . . . Parts Recycled . | . . . . . . . . . . . Recycled Matter . | . . . . . . . . . . . Retrieved Matter . | . . . . . . . . . . . Retrieved Components . | . . . . . . . . . . . Parts Scanalyzed . | . . . . . . . . . . . Part Schematics Acquired . | . . . . . . . . . . . Parts Damaged . | . . . . . . . . . . . Bothacking | -11 -10 -10 -10 -9 -8 -7 -6 -6 -6 -5 ------------ Run | Yrd Mat Min Exi Min Mat Fac Fac Ext Cet Fac Used RIF Installer . | . . . . . . . . . . . Robots Hacked . | . . . . . . . . . . . Non-combat . | . . . . . . . . . . . Combat . | . . . . . . . . . . . Robot Hacks Applied . | . . . . . . . . . . . Relay Couplers Released 4 | . . . . . 2 2 . . . . Machine Destruction 4 | . . . . . 2 2 . . . . Fabnet Peak Effective % . | . . . . . . . . . . . Robots Rewired 11 | . . . . . . . . 11 . . Allies Hacked 1 | . . . . . . . . 1 . . Hacks Repelled . | . . . . . . . . . . . Allies | -11 -10 -10 -10 -9 -8 -7 -6 -6 -6 -5 -------- Run | Yrd Mat Min Exi Min Mat Fac Fac Ext Cet Fac Total Allies 18 | . . 2 . 3 . . . 13 . . Largest Group 8 | . . 2 . 3 3 . . 8 1 1 Highest-Rated Group 267 | . . 40 . 40 40 . . 267 159 152 Highest-Rated Ally 159 | . . 31 . 16 16 . . 159 159 152 Total Orders 3 | . . . . . . . . 3 . . STAY 1 | . . . . . . . . 1 . . ROAM 1 | . . . . . . . . 1 . . FOLLOW 1 | . . . . . . . . 1 . . Ally Attacks 166 | . . 4 . . 19 . . 123 20 . Total Damage 3228 | . . 74 . . 174 . . 2479 501 . Kills 26 | . . 1 . . . . . 21 4 . Allies Corrupted . | . . . . . . . . . . . Allies Melted . | . . . . . . . . . . . Intel | -11 -10 -10 -10 -9 -8 -7 -6 -6 -6 -5 ------- Run | Yrd Mat Min Exi Min Mat Fac Fac Ext Cet Fac Active Infowar (turns) 2 | . . 2 . . . . . . . . Sensors 2 | . . 2 . . . . . . . . Robot Analysis Total . | . . . . . . . . . . . Derelict Logs Recovered 2 | . . . . 2 . . . . . . Drone Launches . | . . . . . . . . . . . Drone Recoveries . | . . . . . . . . . . . Exploration | -11 -10 -10 -10 -9 -8 -7 -6 -6 -6 -5 ------------- Run | Yrd Mat Min Exi Min Mat Fac Fac Ext Cet Fac Turns Passed 19131 | . 1518 1312 574 1289 3180 4926 1479 2044 715 2094 Spaces Moved 8618 | 1 836 665 346 491 1105 2282 627 854 306 1105 Core 100 | 1 . . . . . . 1 . . 98 Treads 7078 | . 480 665 346 491 1105 2178 248 252 306 1007 Legs 1336 | . 356 . . . . . 378 602 . . Wheels 104 | . . . . . . 104 . . . . Hover . | . . . . . . . . . . . Flight . | . . . . . . . . . . . Fastest Speed 50 | 200 120 160 160 160 160 130 160 120 160 50 Average Speed 170 | 200 142 160 160 235 162 171 180 186 200 150 Slowest Speed 1200 | 200 160 160 160 240 245 320 1200 320 240 160 Overloaded Moves . | . . . . . . . . . . . Propulsion Burnouts . | . . . . . . . . . . . Robots Hopped . | . . . . . . . . . . . Potential Cave-ins . | . . . . . . . . . . . Cave-ins Triggered . | . . . . . . . . . . . Exploration Rate (%) 63 | 1 96 91 67 95 87 63 15 85 64 31 Regions Visited 10 Branch Regions 5 Pre-discovered Areas 10 | . 2 . 1 2 4 1 . . . . Known Exits Taken 2 | . . . . . . . . 1 1 . Unknown Exits Taken 8 | 1 1 1 1 1 1 1 1 . . . Scrap Searched 3 | . . 1 . 2 . . . . . . Spaces Dug 6 | . . . . . 1 1 3 . . 1 Terrain Destroyed 423 | . 29 13 . 30 4 150 80 7 . 110 Melee . | . . . . . . . . . . . Projectile 145 | . 9 . . 2 1 10 8 7 . 108 AOE 276 | . 20 13 . 28 3 140 72 . . . Terrain Rammed . | . . . . . . . . . . . Walls Destroyed . | . . . . . . . . . . . Machines Disabled . | . . . . . . . . . . . Actions | -11 -10 -10 -10 -9 -8 -7 -6 -6 -6 -5 --------- Run | Yrd Mat Min Exi Min Mat Fac Fac Ext Cet Fac Total 11455 | . 1015 895 369 553 2176 2799 804 1160 389 1295 Wait 1309 | . 66 209 . 5 836 88 10 61 . 34 Move 8608 | . 835 664 345 490 1104 2281 626 853 305 1105 Hop . | . . . . . . . . . . . Pick Up 128 | . 10 1 16 4 21 27 13 10 15 11 Fast Attach 115 | . 8 1 1 1 10 35 23 21 7 8 Attach 91 | . 2 2 2 2 11 24 16 7 10 15 Detach 36 | . . 2 1 . 4 13 3 4 6 3 Swap 88 | . 4 2 . 6 18 29 6 13 6 4 Drop 127 | . 10 . 4 6 15 31 8 19 25 9 Fire 748 | . 72 7 . 38 153 224 63 72 15 104 Melee 64 | . . . . . . 41 23 . . . Ram 1 | . . . . . . . . . . 1 Kick 9 | . 4 . . . . . 3 2 . . Crush 21 | . 4 7 . 1 4 4 . . . 1 Escape Stasis 14 | . . . . . . 2 10 2 . . Rewire 96 | . . . . . . . . 96 . . Trap . | . . . . . . . . . . . Miscellaneous . | . . . . . . . . . . . Route ------- -11/Scrapyard -10/Materials (discovered 5 exits: [*Mat x3] / *Min x2) -10/Mines (discovered 3 exits: [*Mat] / *Exi / [*Sub]) -10/Exiles -9/Mines (discovered 2 exits: *Mat x2) -8/Materials (discovered 3 exits: *Fac x3) -7/Factory (discovered 5 exits: *Fac x3 / *Sto / [*Low]) -6/Factory -6/Extension (discovered 3 exits: *Fac x2 / *Cet) -6/Cetus (discovered 3 exits: *Fac x2 / [*Arc]) -5/Factory (discovered 2 exits: [*Fac] / [*Upp]) History --------- Turn | Location | Event 1 | -11/Scrapyard | Discovered new exit (range 0) 1 | -11/Scrapyard | Entered Materials 125 | -10/Materials | Discovered new exit (range 16) 304 | -10/Materials | Build established: Mutant 547 | -10/Materials | Discovered new exit (range 7) 994 | -10/Materials | Discovered new exit (range 6) 1146 | -10/Materials | Discovered new exit (range 16) 1212 | -10/Materials | Repaired Imp. Light Cannon 1388 | -10/Materials | Discovered new exit (range 15) 1519 | -10/Materials | Entered Mines 1520 | -10/Mines | Assembled infested the area 1962 | -10/Mines | A weapon hastily lodged in a ceiling crevice suddenly fell to the ground 2026 | -10/Mines | Found a Scrap Suit stashed away for nefarious purposes 2076 | -10/Mines | Deemed a non-threat by the Exiles lab entrance 2076 | -10/Mines | Discovered new exit (range 5) 2203 | -10/Mines | Found the Drone Emporium 2208 | -10/Mines | Found Prototype Device 2317 | -10/Mines | Found a hidden stash of uninstalled traps 2369 | -10/Mines | Discovered new exit (range 8) 2593 | -10/Mines | Found a damaged Exp. Sensor Array with a note attached 2597 | -10/Mines | Found Prototype Device 2597 | -10/Mines | Identified Exp. Sensor Array 2642 | -10/Mines | Discovered new exit (range 7) 2831 | -10/Mines | Entered Exiles 2887 | -10/Exiles | Met 8R-AWN 2913 | -10/Exiles | Met EX-HEX 2975 | -10/Exiles | Met EX-DEC 2985 | -10/Exiles | Learned location of Zion (-6) 3014 | -10/Exiles | Met EX-BIN 3156 | -10/Exiles | Aligned with FarCom system 3158 | -10/Exiles | Given EX-Vault access code 3196 | -10/Exiles | Opened EX-Vault 3206 | -10/Exiles | Found 0b10 Alert Chip 3215 | -10/Exiles | Identified Decoy Drone Bay 3277 | -10/Exiles | Warned to stay clear of 0b10 Research branches 3393 | -10/Exiles | Discovered new exit (range 10) 3405 | -10/Exiles | Left Exiles lab with 0b10 Alert Chip 3405 | -10/Exiles | Entered Mines 3421 | -9/Mines | Joined a pair of Derelicts in attacking an 0b10 outpost 4019 | -9/Mines | Core integrity fell below 50% 4136 | -9/Mines | Discovered new exit (range 11) 4368 | -9/Mines | Assisted by bots powering up and referring to "LRC-V3" 4466 | -9/Mines | Learned location of Storage (-7) 4478 | -9/Mines | Discovered new exit (range 5) 4694 | -9/Mines | Entered Materials 4694 | -8/Materials | Accompanied by 3 allies 4694 | -8/Materials | Evolved 4 slots: Propulsion x1, Utility x2, Weapon x1 4959 | -8/Materials | Lost 3 allies 4966 | -8/Materials | Destroyed 8 combat bots 5227 | -8/Materials | Build established: Scavenger-Skirmisher 5675 | -8/Materials | Discovered new exit (range 3) 6104 | -8/Materials | Discovered new exit (range 13) 6286 | -8/Materials | Learned location of Recycling (-7) 6870 | -8/Materials | Garrison activated, responded to threat 7014 | -8/Materials | Repaired Hvy. Particle Gun 7059 | -8/Materials | Repaired Imp. Cooling System 7094 | -8/Materials | First assault squad dispatched 7098 | -8/Materials | Discovered new exit (range 6) 7106 | -8/Materials | Sterilization system engaged 7106 | -8/Materials | Non-combat units ordered to evacuate 7206 | -8/Materials | Combat units ordered to evacuate 7406 | -8/Materials | Ambient heat levels rising (+10) 7556 | -8/Materials | Ambient heat levels rising (+10) 7706 | -8/Materials | Ambient heat levels rising (+10) 7856 | -8/Materials | Ambient heat levels rising (+10) 7874 | -8/Materials | Entered Factory 7874 | -7/Factory | Evolved 2 slots: Power x1, Propulsion x1 7875 | -7/Factory | Identified exit to Storage 9686 | -7/Factory | Discovered new exit (range 13) 9874 | -7/Factory | First assault squad dispatched 10121 | -7/Factory | Garrison activated, responded to threat 10196 | -7/Factory | Discovered new exit (range 15) 10203 | -7/Factory | Destroyed 7 combat bots 10454 | -7/Factory | Garrison activated, responded to threat 10664 | -7/Factory | Destroyed 10 combat bots 10923 | -7/Factory | Garrison activated, responded to threat 11345 | -7/Factory | Discovered new exit (range 2) 11533 | -7/Factory | Lost 3 parts (2n1u) 11545 | -7/Factory | Garrison activated, responded to threat 11546 | -7/Factory | Learned location of 1 exit from Upper Caves 11572 | -7/Factory | Destroyed 8 combat bots 11617 | -7/Factory | Learned 2 Extension zone layouts 11679 | -7/Factory | Learned 4 Extension zone layouts 11732 | -7/Factory | Learned Extension trap positions 11735 | -7/Factory | Core integrity fell below 50% 11765 | -7/Factory | Lost 5 parts (1p1n3w) 11776 | -7/Factory | Learned Extension trap positions 11809 | -7/Factory | Learned Factory emergency access door positions 11853 | -7/Factory | Learned location of 1 exit from Lower Caves 11907 | -7/Factory | Learned location of 1 exit from Lower Caves 11979 | -7/Factory | Lost 5 parts (1p2n2w) 12047 | -7/Factory | Learned location of Lower Caves (-7) 12448 | -7/Factory | Core integrity fell below 20% 12451 | -7/Factory | Garrison activated, responded to threat 12474 | -7/Factory | Build established: Scavenger-Gladiator 12593 | -7/Factory | Lost 3 parts (1p2n) 12594 | -7/Factory | Destroyed 7 combat bots 12788 | -7/Factory | Discovered new exit (range 8) 12800 | -7/Factory | Entered another Factory area 12800 | -6/Factory | Evolved 2 slots: Utility x2 13097 | -6/Factory | Discovered new exit (range 16) 13137 | -6/Factory | Build established: Scavenger-Skirmisher 13150 | -6/Factory | First assault squad dispatched 13364 | -6/Factory | Lost 11 parts (1p4n3u3w) 13893 | -6/Factory | Cargo convoy interrupted 14102 | -6/Factory | Lost 9 parts (2p2n3u2w) 14279 | -6/Factory | Entered Extension 14280 | -6/Extension | Identified exit to Factory 14280 | -6/Extension | Identified exit to Cetus 14281 | -6/Extension | Disrupted transfer network 14281 | -6/Extension | Loaded intel: 28 trap records 14647 | -6/Extension | Core integrity fell below 50% 14779 | -6/Extension | Lost 3 allies 14784 | -6/Extension | Lost 5 parts (1p3u1w) 14932 | -6/Extension | Found Powered Armor 15392 | -6/Extension | Build established: Commander-Gunner 15606 | -6/Extension | Spotted B-75 Beast 15618 | -6/Extension | Destroyed B-75 Beast 15631 | -6/Extension | Spotted B-75 Beast 15637 | -6/Extension | Allies destroyed B-75 Beast 15701 | -6/Extension | Lost 3 parts (1p1u1w) 15921 | -6/Extension | Rescued a captive Derelict 15939 | -6/Extension | Build established: Scavenger-Tank 16029 | -6/Extension | First assault squad dispatched 16148 | -6/Extension | Rescued A7 16153 | -6/Extension | Lost 3 parts (1n2u) 16255 | -6/Extension | Rescued a captive Derelict 16323 | -6/Extension | Entered Cetus 16323 | -6/Cetus | Accompanied by 1 ally (A7) 16328 | -6/Cetus | Acquired a Cetus Manufacturing Module code from A7 16353 | -6/Cetus | Spotted Cetus Guard 16353 | -6/Cetus | Spotted Cetus Guard 16358 | -6/Cetus | Spotted Cetus Guard 16358 | -6/Cetus | Spotted Cetus Guard 16361 | -6/Cetus | Allies destroyed Cetus Guard 16363 | -6/Cetus | Destroyed Cetus Guard 16369 | -6/Cetus | Destroyed Cetus Guard 16381 | -6/Cetus | Destroyed Cetus Guard 16441 | -6/Cetus | Cetus Manufacturing Module disabled 16491 | -6/Cetus | Failed to start Cetus Manufacturing Module 16716 | -6/Cetus | Discovered new exit (range 15) 16757 | -6/Cetus | Spotted Cetus Guard 16758 | -6/Cetus | Spotted Cetus Guard 16760 | -6/Cetus | Spotted Cetus Guard 16761 | -6/Cetus | Spotted Cetus Guard 16768 | -6/Cetus | Destroyed Cetus Guard 16770 | -6/Cetus | Allies destroyed Cetus Guard 16771 | -6/Cetus | Destroyed Cetus Guard 16774 | -6/Cetus | Destroyed Cetus Guard 16785 | -6/Cetus | Discovered exit to Factory (range 15) 16793 | -6/Cetus | Met Revision 17 16992 | -6/Cetus | Discovered exit to Factory (range 15) 17019 | -6/Cetus | System corruption reached 10% 17028 | -6/Cetus | System corruption reached 30% 17038 | -6/Cetus | Entered Factory 17038 | -5/Factory | Accompanied by 1 ally (A7) 17038 | -5/Factory | Evolved 2 slots: Weapon x2 17838 | -5/Factory | Discovered new exit (range 15) 18176 | -5/Factory | Lost 3 parts (1u2w) 18188 | -5/Factory | Destroyed 9 combat bots 18455 | -5/Factory | Discovered new exit (range 5) 18838 | -5/Factory | First assault squad dispatched 18978 | -5/Factory | System corruption reached 10% 19057 | -5/Factory | Cargo convoy interrupted 19080 | -5/Factory | Released all parts (15) 19086 | -5/Factory | Core integrity fell below 50% 19132 | -5/Factory | Self-destructed Last Messages --------------- 19080_ Released Adv. Variable Charge Gun. 19080_ Adv. Variable Charge Gun crushed and broken. [Achievement: Live, Flee, And Rebuild] 19080_ Dropped Centrium Heavy Treads. 19080_ Centrium Heavy Treads crushed and broken. 19081_ System corrupted: Energy discharge (-27). 19081_ Slug penetrates Wall. 19081_ Penetrated by Slug. 19081_ Slug penetrates Wall. 19083_ Penetrated by Slug. 19083_ Slug penetrates Wall. 19083_ Acquired Imp. Plasma Cutter. 19085_ Penetrated by Slug. 19085_ Slug penetrates Wall. 19086_ Penetrated by Slug. 19087_ Slammed into I-47 Archangel. 19088_ Penetrated by Slug. 19088_ Slug penetrates H-66 Slayer. 19089_ Slug penetrates Wall. 19113_ System corrupted: Component data lost. Map ----- +----------------------------------------------------+ | ???????????????????####### # ??????? | | ???????????????????# # """"" """??????? | | ???????????????????# + ""T"" """ ????? | | ???????????????????# # """ ????? | | ??????????########## # * #???? | | ??????????# # ##############???? | | ??????????# # ##############??????????? | | ??????????# # # !#??????????? | | ??????????# # # """"" #??????????? | | ??????????# + + """""??????????????? | | ??????????# # # | """ ?????????????? | | ??????????# # # ?????????????? | | ??????????# # ############????????????? | | ??????????# ### ###??????????????????????## | | ??????????##########?# #????????????????????????#! | | ?????????????????????# #???###########??????????# | | ?????????????????????# #???# #??????????# | | ?????????????????????# #???# #??????????# | | ?????????????????????# #???# % #??????????# | | ?????????????????????# #???# #??????????# | | ??????????????######## #???# #??????????# | | ??????????????? # #???# #??????????# | | ???????????????"""" # ##### #????????#### | | ???????????????"""" # # ##???????# | | ????????????# """" # ###+################ | | ????????????# """" # <@ ^ | | ????????????# """" + ###### | | ????????????# """" # ^ #????# | | ????????????# """" # #????## | | ????????????# + #????## | | ????????????############+#############+######### | | ??????????????# # ## | | ??????????????# === # + | | ??????????????# == # """ """ """ ###+ | | ??????????????# == ] # """ """ """ # | | ??????????????# ^ #[ """ """ """ # "" | | ??????????????# # # "" | | ??????????????# # """ """ """ # "" | | ??????????????# # """ """ """ # | | ??????????????# = #???""" """ """ # | | ??????????????# #???? # | | ??????????????#################?????##??###??##### | | | | | | | | | | | | | | | | | +----------------------------------------------------+ Best States ------------- Heat Dissipation 110 Energy Generation 39 Energy Capacity 540 Matter Stores 300 Matter Capacity 500 Sight Range 16 Terrain Scan Density 10 Power Amplification 20 Base Temperature (-) 150 Armor Coverage 1350 Resistance: KI 30 Weapon Cycling 20 Evasion (%) 55 Targeting Accuracy 8 Melee Accuracy 6 Recoil Reduction 4 Particle Charging 20 Item Schematics ----------------- Gyrokinetic Inverter | -6/Extension | Hacked Robot Schematics ------------------ None Fabricated ------------ Nothing Repaired ---------- Imp. Light Cannon | 33% | -10/Materials Hvy. Particle Gun | 15% | -8/Materials Imp. Cooling System | 8% | -8/Materials Studied --------- Proton Missile Launcher | -7/Factory | Hacked Phase Cannon | -6/Factory | Hacked Imp. EM Pulse Cannon | -6/Factory | Hacked Alien Tech Used ----------------- None Achievements -------------- Jackpot Live, Flee, And Rebuild Challenges ------------ None Game ------ Seed SniperSpreadCharge Manual? 0 Play Time 02:07:33 Cumulative 465.2 hours Start 2025.11.16 @ 12:06:40 End 2025.11.16 @ 20:22:10 Sessions 5 Manual Loads 0 Difficulty Rogue Special Mode None Game No. 293 Rogue 293 Adventurer 0 Explorer 0 Win Type - Total 33 Types 26/1/4/2/0/0/0/0/0/0 Lore% 91 Gallery% 82 Achievement% 50 Wizard Run 0 Options --------- Layout 0 ASCII 0 Keyboard 1 Movement Arrows Keybinds 0 Fullscreen 2 Font 18/Terminus Map View 76x50 Zoom Use 0% Tactical HUD 1 Map Filters NONE Filters NONE Steam 1 RUN: 11e96099-03db-4291-904f-d59858479986